[Event "EYCC Girls-U14 2019"]
[Site "Bratislava"]
[Date "2019.08.03"]
[Round "2.2"]
[White "Tarasenka, Aliaksandra"]
[Black "Kralj, Nika"]
[Result "1-0"]
[ECO "A10"]
[WhiteElo "2231"]
[BlackElo "1807"]
[Annotator "NA"]
[PlyCount "61"]
[EventDate "2019.08.02"]
[EventType "swiss"]
[EventCountry "SVK"]
[SourceTitle "playchess.com"]
[Source "ChessBase"]
[SourceQuality "1"]
[TimeControl "40/5400+30:1800+30"]

1. c4 {[%emt 0:00:00]} g6 {[%emt 0:00:00]} 2. Nc3 {[%emt 0:00:00]} d6 {[%emt 0:00:00]} 3. g3 {[%emt 0:00:40]} Bg7 {[%emt 0:00:00]} 4. Bg2 {[%emt 0:00:12]} e5 {[%emt 0:00:05]} 5. d3 {[%emt 0:01:18]} f5 {[%emt 0:00:06]} 6. Rb1 {[%emt 0:00:30]} Nf6 {[%emt 0:00:40]} 7. b4 {[%emt 0:00:33]} Nc6 {[%emt 0:00:49]} 8. e3 {[%emt 0:00:32]} Rb8 {[%emt 0:01:46]} 9. Qa4 {[%emt 0:07:10]} a6 {[%emt 0:23:21]} 10. b5 {[%emt 0:15:07]} axb5 {[%emt 0:00:35]} 11. cxb5 {[%emt 0:06:11]} Ne7 {[%emt 0:00:18]} 12. Qa7 {[%emt 0:03:07]} Be6 {[%emt 0:05:28]} 13. Bxb7 {[%emt 0:06:24]} Nfd5 {[%emt 0:04:32]} 14. Nge2 {[%emt 0:13:12]} Nxc3 {[%emt 0:10:16]} 15. Nxc3 {[%emt 0:00:16]} e4 {[%emt 0:00:12]} 16. Bb2 {[%emt 0:09:56]} exd3 {[%emt 0:04:02]} 17. O-O {[%emt 0:04:06]} O-O {[%emt 0:02:27]} 18. Bg2 {[%emt 0:12:46]} Bc4 {[%emt 0:02:30]} 19. Rfd1 {[%emt 0:05:28]} Qd7 {[%emt 0:29:54]} 20. a4 {[%emt 0:05:16]} d5 {[%emt 0:01:52]} 21. Qc5 {[%emt 0:02:03]} Rfd8 {[%emt 0:01:46]} 22. Rbc1 {[%emt 0:02:39]} Ra8 {[%emt 0:06:00]} 23. Ba3 Bf6 {[%emt 0:01:27]} 24. Rd2 {[%emt 0:03:46]} Kf7 {[%emt 0:01:54]} 25. e4 {[%emt 0:00:34]} Bxc3 {[%emt 0:01:08]} 26. Rxc3 {[%emt 0:00:04]} fxe4 {[%emt 0:01:07]} 27. Bxe4 {[%emt 0:00:18]} Rxa4 {[%emt 0:00:29]} 28. Bxd3 {[%emt 0:01:03]} Qe6 {[%emt 0:00:41]} 29. Rd1 {[%emt 0:00:42]} Bxd3 {[%emt 0:00:32]} 30. Rcxd3 {[%emt 0:00:17]} Qe4 {[%emt 0:00:27]} 31. Re3 {[%emt 0:00:24]} 1-0

[Event "EYCC Girls-U14 2019"]
[Site "Bratislava"]
[Date "2019.08.03"]
[Round "2.3"]
[White "Alekseenko, Mariya"]
[Black "Toncheva, Nadya"]
[Result "1/2-1/2"]
[ECO "A36"]
[WhiteElo "1848"]
[BlackElo "2087"]
[Annotator "NA"]
[PlyCount "141"]
[EventDate "2019.08.02"]
[EventType "swiss"]
[EventCountry "SVK"]
[SourceTitle "playchess.com"]
[Source "ChessBase"]
[SourceQuality "1"]
[TimeControl "40/5400+30:1800+30"]

1. c4 {[%emt 0:00:00]} c5 {[%emt 0:00:00]} 2. g3 {[%emt 0:00:00]} g6 {[%emt 0:00:00]} 3. Bg2 {[%emt 0:00:00]} Bg7 {[%emt 0:00:00]} 4. Nc3 {[%emt 0:00:00]} Nc6 {[%emt 0:00:00]} 5. e3 {[%emt 0:00:00]} Nh6 {[%emt 0:01:16]} 6. Nge2 {[%emt 0:01:12]} Nf5 {[%emt 0:00:06]} 7. d3 {[%emt 0:04:45]} e6 {[%emt 0:02:32]} 8. Rb1 {[%emt 0:00:22]} Rb8 {[%emt 0:08:00]} 9. a3 {[%emt 0:04:25]} d6 {[%emt 0:00:06]} 10. b4 {[%emt 0:01:34]} Qd7 {[%emt 0:02:05]} 11. b5 {[%emt 0:07:04]} Nce7 {[%emt 0:07:10]} 12. O-O {[%emt 0:00:52]} O-O {[%emt 0:00:10]} 13. e4 {[%emt 0:01:31]} Nd4 {[%emt 0:00:12]} 14. Nxd4 {[%emt 0:00:19]} cxd4 {[%emt 0:00:10]} 15. Ne2 {[%emt 0:00:18]} Qc7 {[%emt 0:06:45]} 16. a4 {[%emt 0:05:27]} e5 {[%emt 0:08:19]} 17. Bd2 {[%emt 0:08:24]} f5 {[%emt 0:03:17]} 18. exf5 {[%emt 0:06:54]} gxf5 {[%emt 0:00:43]} 19. Qb3 {[%emt 0:02:17]} f4 {[%emt 0:29:12]} 20. f3 {[%emt 0:15:43]} Be6 {[%emt 0:05:15]} 21. gxf4 {[%emt 0:05:59]} Bh6 {[%emt 0:01:56]} 22. Kh1 {[%emt 0:03:39]} Ng6 {[%emt 0:02:32]} 23. f5 {[%emt 0:03:44]} Bxd2 {[%emt 0:00:08]} 24. fxe6 {[%emt 0:01:08]} Kh8 {[%emt 0:01:27]} 25. b6 {[%emt 0:06:47]} axb6 {[%emt 0:00:44]} 26. Qxb6 {[%emt 0:00:06]} Qe7 {[%emt 0:01:03]} 27. Ng3 {[%emt 0:06:13]} Nf4 {[%emt 0:04:32]} 28. Ne4 {[%emt 0:00:11]} Qg7 {[%emt 0:07:10]} 29. Rf2 {[%emt 0:02:31]} Be3 {[%emt 0:00:08]} 30. Ra2 {[%emt 0:01:04]} Nxe6 {[%emt 0:02:10]} 31. Qxd6 {[%emt 0:02:12]} Nf4 {[%emt 0:00:56]} 32. Rd1 {[%emt 0:02:56]} Rbc8 {[%emt 0:00:56]} 33. Qb4 {[%emt 0:02:08]} Rc6 {[%emt 0:00:21]} 34. Nd6 {[%emt 0:04:31]} Qh6 {[%emt 0:01:15]} 35. c5 {[%emt 0:01:12]} Qe6 {[%emt 0:02:02]} 36. Rb2 {[%emt 0:00:49]} Rc7 {[%emt 0:02:49]} 37. Qc4 {[%emt 0:01:31]} Qg6 {[%emt 0:00:49]} 38. Qc2 {[%emt 0:00:40]} Qg7 {[%emt 0:01:00]} 39. Rdb1 {[%emt 0:00:17]} Qg6 {[%emt 0:01:25]} 40. Ne4 {[%emt 0:00:00]} Rff7 {[%emt 0:00:00]} 41. Rb6 {[%emt 0:02:38]} Qh5 {[%emt 0:04:54]} 42. Ng3 {[%emt 0:03:26]} Qh4 {[%emt 0:02:51]} 43. c6 {[%emt 0:03:32]} bxc6 {[%emt 0:00:04]} 44. a5 {[%emt 0:03:24]} Nd5 {[%emt 0:03:02]} 45. Rxc6 {[%emt 0:02:22]} Bf4 {[%emt 0:00:35]} 46. Rxc7 {[%emt 0:05:48]} Nxc7 {[%emt 0:00:13]} 47. Nf1 {[%emt 0:03:05]} Kg7 {[%emt 0:07:37]} 48. Rb7 {[%emt 0:01:06]} e4 {[%emt 0:00:34]} 49. dxe4 {[%emt 0:00:29]} Qe1 {[%emt 0:00:19]} 50. a6 {[%emt 0:00:57]} Qa5 {[%emt 0:00:46]} 51. a7 {[%emt 0:01:25]} Qa6 {[%emt 0:01:08]} 52. Qb2 {[%emt 0:01:03]} Be5 {[%emt 0:00:33]} 53. Qb1 {[%emt 0:02:23]} Bf4 {[%emt 0:01:15]} 54. Qb6 {[%emt 0:01:03]} Qxb6 {[%emt 0:00:14]} 55. Rxb6 {[%emt 0:00:05]} Na8 {[%emt 0:00:10]} 56. Ra6 {[%emt 0:00:10]} d3 {[%emt 0:00:24]} 57. Ra1 {[%emt 0:00:11]} d2 {[%emt 0:01:24]} 58. Bh3 {[%emt 0:01:00]} Kf6 {[%emt 0:00:15]} 59. Rd1 {[%emt 0:00:38]} Rxa7 {[%emt 0:00:57]} 60. Nxd2 Ra2 {[%emt 0:00:11]} 61. Nf1 {[%emt 0:00:32]} Nb6 {[%emt 0:00:33]} 62. Rd8 {[%emt 0:02:33]} Ke7 {[%emt 0:02:03]} 63. Rh8 {[%emt 0:00:45]} h6 {[%emt 0:00:07]} 64. Ng3 {[%emt 0:01:20]} Ra1+ {[%emt 0:01:04]} 65. Nf1 {[%emt 0:00:35]} Nc4 {[%emt 0:00:42]} 66. Rg8 {[%emt 0:02:17]} Nd2 {[%emt 0:01:50]} 67. Rg4 {[%emt 0:01:13]} Bg5 {[%emt 0:00:05]} 68. f4 {[%emt 0:00:26]} Nxe4 {[%emt 0:02:05]} 69. fxg5 {[%emt 0:00:44]} Nf2+ {[%emt 0:00:04]} 70. Kg2 {[%emt 0:00:14]} Nxg4 {[%emt 0:00:05]} 71. Bxg4 {[%emt 0:00:05]} 1/2-1/2

[Event "EYCC Girls-U14 2019"]
[Site "Bratislava"]
[Date "2019.08.03"]
[Round "2.4"]
[White "Nur-Mukhametova, Alisa"]
[Black "Kasaeva, Sofiia"]
[Result "1-0"]
[ECO "A09"]
[WhiteElo "2126"]
[BlackElo "1897"]
[Annotator "NA"]
[PlyCount "89"]
[EventDate "2019.08.02"]
[EventType "swiss"]
[EventCountry "SVK"]
[SourceTitle "playchess.com"]
[Source "ChessBase"]
[SourceQuality "1"]
[TimeControl "40/5400+30:1800+30"]

1. Nf3 {[%emt 0:00:00]} d5 {[%emt 0:00:00]} 2. c4 {[%emt 0:00:09]} d4 {[%emt 0:01:41]} 3. e3 {[%emt 0:00:38]} dxe3 {[%emt 0:09:43]} 4. fxe3 {[%emt 0:00:30]} c5 {[%emt 0:13:56]} 5. d4 {[%emt 0:01:58]} e6 {[%emt 0:01:30]} 6. Nc3 {[%emt 0:00:52]} Nf6 {[%emt 0:02:33]} 7. Be2 {[%emt 0:03:51]} cxd4 {[%emt 0:05:34]} 8. exd4 {[%emt 0:00:21]} Be7 {[%emt 0:03:01]} 9. Bf4 {[%emt 0:09:41]} O-O {[%emt 0:03:35]} 10. Qc2 {[%emt 0:03:01]} Nc6 {[%emt 0:03:40]} 11. O-O-O {[%emt 0:05:32]} Qa5 {[%emt 0:11:01]} 12. Ne5 {[%emt 0:04:53]} Rd8 {[%emt 0:09:05]} 13. Nxc6 {[%emt 0:02:56]} bxc6 {[%emt 0:00:30]} 14. Bf3 {[%emt 0:02:21]} Ba6 {[%emt 0:09:49]} 15. c5 {[%emt 0:04:17]} Nd5 {[%emt 0:01:40]} 16. Bxd5 {[%emt 0:03:33]} cxd5 {[%emt 0:02:01]} 17. Rhe1 {[%emt 0:05:50]} Qb4 {[%emt 0:04:41]} 18. Qa4 {[%emt 0:08:02]} Qxa4 {[%emt 0:03:29]} 19. Nxa4 {[%emt 0:00:15]} Bf6 {[%emt 0:01:24]} 20. b4 {[%emt 0:09:09]} Bc4 {[%emt 0:02:23]} 21. Nc3 {[%emt 0:00:30]} a6 {[%emt 0:00:36]} 22. Kc2 {[%emt 0:03:02]} Ra7 {[%emt 0:04:14]} 23. Rd2 {[%emt 0:00:54]} Rb7 {[%emt 0:03:32]} 24. Rb1 {[%emt 0:00:25]} Rc8 {[%emt 0:01:25]} 25. a4 {[%emt 0:00:36]} g5 {[%emt 0:00:50]} 26. Bd6 {[%emt 0:04:04]} Be7 {[%emt 0:00:14]} 27. Bg3 {[%emt 0:08:26]} f5 {[%emt 0:00:39]} 28. Be5 {[%emt 0:00:16]} Kf7 {[%emt 0:00:34]} 29. b5 {[%emt 0:01:17]} a5 {[%emt 0:00:06]} 30. Nd1 {[%emt 0:01:48]} f4 {[%emt 0:00:20]} 31. Nb2 {[%emt 0:00:20]} Bf6 {[%emt 0:00:38]} 32. Nxc4 {[%emt 0:00:41]} dxc4 {[%emt 0:00:05]} 33. Bxf6 {[%emt 0:00:35]} Kxf6 {[%emt 0:00:04]} 34. Kc3 {[%emt 0:00:09]} e5 {[%emt 0:00:35]} 35. dxe5+ {[%emt 0:00:08]} Kxe5 {[%emt 0:00:07]} 36. Re1+ {[%emt 0:00:13]} Kf5 {[%emt 0:00:29]} 37. Kxc4 {[%emt 0:00:16]} g4 {[%emt 0:01:23]} 38. Rd5+ {[%emt 0:00:26]} Kg6 {[%emt 0:00:21]} 39. Re6+ {[%emt 0:00:33]} Kf7 {[%emt 0:00:15]} 40. Re4 {[%emt 0:00:00]} f3 {[%emt 0:00:00]} 41. gxf3 {[%emt 0:00:20]} gxf3 {[%emt 0:00:50]} 42. Rf5+ {[%emt 0:00:12]} Kg6 {[%emt 0:00:29]} 43. Rxf3 {[%emt 0:00:10]} h5 {[%emt 0:00:11]} 44. h4 {[%emt 0:01:28]} Rd7 {[%emt 0:00:19]} 45. Re6+ {[%emt 0:00:22]} 1-0

[Event "EYCC Girls-U14 2019"]
[Site "Bratislava"]
[Date "2019.08.03"]
[Round "2.5"]
[White "Lomaia, Diana"]
[Black "Allahverdiyeva, Ayan"]
[Result "0-1"]
[ECO "D11"]
[WhiteElo "1807"]
[BlackElo "2114"]
[Annotator "NA"]
[PlyCount "98"]
[EventDate "2019.08.02"]
[EventType "swiss"]
[EventCountry "SVK"]
[SourceTitle "playchess.com"]
[Source "ChessBase"]
[SourceQuality "1"]
[TimeControl "40/5400+30:1800+30"]

1. d4 {[%emt 0:00:00]} d5 {[%emt 0:00:39]} 2. c4 {[%emt 0:00:00]} c6 {[%emt 0:04:30]} 3. e3 {[%emt 0:02:04]} Nf6 {[%emt 0:00:16]} 4. Nf3 {[%emt 0:00:22]} e6 {[%emt 0:01:00]} 5. Qc2 {[%emt 0:00:29]} Nbd7 {[%emt 0:01:01]} 6. Be2 {[%emt 0:01:32]} Bd6 {[%emt 0:00:33]} 7. O-O {[%emt 0:00:23]} O-O {[%emt 0:00:34]} 8. Nc3 {[%emt 0:03:25]} dxc4 {[%emt 0:06:15]} 9. Bxc4 {[%emt 0:01:48]} b5 {[%emt 0:01:25]} 10. Be2 {[%emt 0:01:31]} Bb7 {[%emt 0:01:44]} 11. Rd1 {[%emt 0:02:09]} Qb8 {[%emt 0:03:42]} 12. h3 {[%emt 0:09:50]} Rc8 {[%emt 0:06:27]} 13. Qd3 {[%emt 0:14:26]} Rd8 {[%emt 0:06:41]} 14. e4 {[%emt 0:16:11]} Bc7 {[%emt 0:01:22]} 15. Qc2 {[%emt 0:01:55]} e5 {[%emt 0:04:30]} 16. Be3 {[%emt 0:05:38]} Re8 {[%emt 0:03:39]} 17. a3 {[%emt 0:05:32]} a5 {[%emt 0:17:30]} 18. dxe5 {[%emt 0:09:50]} Nxe5 {[%emt 0:01:05]} 19. Bg5 {[%emt 0:01:36]} Ned7 {[%emt 0:04:18]} 20. b4 {[%emt 0:04:05]} h6 {[%emt 0:05:03]} 21. Be3 {[%emt 0:01:17]} axb4 {[%emt 0:04:27]} 22. axb4 {[%emt 0:00:17]} Rxa1 {[%emt 0:00:21]} 23. Rxa1 {[%emt 0:00:06]} c5 {[%emt 0:00:34]} 24. bxc5 {[%emt 0:08:08]} b4 {[%emt 0:00:40]} 25. Nb5 {[%emt 0:00:36]} Bxe4 {[%emt 0:00:56]} 26. Qa4 {[%emt 0:00:24]} Nd5 {[%emt 0:03:43]} 27. Bd4 {[%emt 0:04:13]} Nf4 {[%emt 0:00:39]} 28. Bf1 {[%emt 0:02:58]} Nxh3+ {[%emt 0:09:50]} 29. gxh3 {[%emt 0:00:22]} Bxf3 {[%emt 0:00:05]} 30. Nxc7 {[%emt 0:00:25]} Qxc7 {[%emt 0:00:05]} 31. Bg2 {[%emt 0:02:07]} Bxg2 {[%emt 0:03:09]} 32. Kxg2 {[%emt 0:00:02]} Re6 {[%emt 0:00:30]} 33. Qa8+ {[%emt 0:00:12]} Kh7 {[%emt 0:00:10]} 34. Qf3 {[%emt 0:00:55]} Ne5 {[%emt 0:01:17]} 35. Qd5 {[%emt 0:01:47]} Nd3 {[%emt 0:02:28]} 36. Be3 {[%emt 0:00:19]} Rg6+ {[%emt 0:02:04]} 37. Kh1 {[%emt 0:00:30]} Nf4 {[%emt 0:02:36]} 38. Qf3 {[%emt 0:00:19]} Qe5 {[%emt 0:01:34]} 39. Rc1 {[%emt 0:00:32]} Nd3 {[%emt 0:00:27]} 40. Rb1 {[%emt 0:00:00]} Rf6 {[%emt 0:00:00]} 41. Qg2 {[%emt 0:07:54]} Qf5 {[%emt 0:05:58]} 42. Rg1 {[%emt 0:11:23]} Rg6 {[%emt 0:00:15]} 43. Qf1 {[%emt 0:00:29]} Qe4+ {[%emt 0:05:10]} 44. Kh2 {[%emt 0:01:47]} Nxc5 {[%emt 0:05:35]} 45. Rxg6 {[%emt 0:03:28]} fxg6 {[%emt 0:00:04]} 46. Qb5 {[%emt 0:01:31]} Nd3 {[%emt 0:00:21]} 47. Qa6 {[%emt 0:06:52]} b3 {[%emt 0:01:22]} 48. Qb5 {[%emt 0:00:14]} b2 {[%emt 0:00:25]} 49. Qb3 {[%emt 0:01:18]} Ne1 {[%emt 0:00:12]} 0-1

[Event "EYCC Girls-U14 2019"]
[Site "Bratislava"]
[Date "2019.08.03"]
[Round "2.6"]
[White "Roebers, Eline"]
[Black "Mihelic, Vesna"]
[Result "1-0"]
[ECO "C45"]
[WhiteElo "2069"]
[BlackElo "1844"]
[Annotator "NA"]
[PlyCount "59"]
[EventDate "2019.08.02"]
[EventType "swiss"]
[EventCountry "SVK"]
[SourceTitle "playchess.com"]
[Source "ChessBase"]
[SourceQuality "1"]
[TimeControl "40/5400+30:1800+30"]

1. e4 {[%emt 0:00:00]} e5 {[%emt 0:00:00]} 2. Nf3 {[%emt 0:00:00]} Nc6 {[%emt 0:00:00]} 3. d4 {[%emt 0:00:48]} exd4 {[%emt 0:00:00]} 4. Nxd4 {[%emt 0:00:07]} Nf6 {[%emt 0:00:07]} 5. Nxc6 {[%emt 0:01:11]} bxc6 {[%emt 0:00:09]} 6. e5 {[%emt 0:00:09]} Qe7 {[%emt 0:00:06]} 7. Qe2 {[%emt 0:00:49]} Nd5 {[%emt 0:00:07]} 8. c4 {[%emt 0:01:17]} Nb6 {[%emt 0:00:11]} 9. Nc3 {[%emt 0:00:49]} a5 {[%emt 0:03:50]} 10. Qe4 {[%emt 0:15:47]} g6 {[%emt 0:03:31]} 11. Bd3 {[%emt 0:11:58]} Bg7 {[%emt 0:01:44]} 12. f4 {[%emt 0:04:53]} O-O {[%emt 0:08:54]} 13. O-O {[%emt 0:06:51]} Ba6 {[%emt 0:09:32]} 14. Be3 {[%emt 0:12:56]} Qe6 {[%emt 0:25:35]} 15. Bxb6 {[%emt 0:07:36]} cxb6 {[%emt 0:00:11]} 16. Rae1 {[%emt 0:01:46]} Rfe8 {[%emt 0:05:09]} 17. b3 {[%emt 0:09:26]} f6 {[%emt 0:19:20]} 18. Qf3 {[%emt 0:09:04]} fxe5 {[%emt 0:04:18]} 19. f5 {[%emt 0:02:44]} Qe7 {[%emt 0:14:40]} 20. f6 {[%emt 0:04:49]} Qc5+ {[%emt 0:01:20]} 21. Qf2 {[%emt 0:05:16]} Bxf6 {[%emt 0:01:04]} 22. Qxc5 {[%emt 0:00:06]} bxc5 {[%emt 0:00:05]} 23. Rxf6 {[%emt 0:00:06]} Kg7 {[%emt 0:00:15]} 24. Ref1 {[%emt 0:01:00]} Re7 {[%emt 0:00:10]} 25. Ne4 {[%emt 0:00:58]} d5 {[%emt 0:00:38]} 26. Nxc5 {[%emt 0:00:58]} e4 {[%emt 0:00:17]} 27. Be2 {[%emt 0:00:16]} Bc8 {[%emt 0:00:25]} 28. cxd5 {[%emt 0:01:09]} cxd5 {[%emt 0:00:08]} 29. Rd6 {[%emt 0:00:35]} Bf5 {[%emt 0:00:38]} 30. g4 {[%emt 0:00:36]} 1-0

[Event "EYCC Girls-U14 2019"]
[Site "Bratislava"]
[Date "2019.08.03"]
[Round "2.7"]
[White "Kiousi, Panagiota"]
[Black "Bondareva, Daria"]
[Result "1/2-1/2"]
[ECO "E16"]
[WhiteElo "1895"]
[BlackElo "1998"]
[Annotator "NA"]
[PlyCount "86"]
[EventDate "2019.08.02"]
[EventType "swiss"]
[EventCountry "SVK"]
[SourceTitle "playchess.com"]
[Source "ChessBase"]
[SourceQuality "1"]
[TimeControl "40/5400+30:1800+30"]

1. d4 {[%emt 0:00:00]} Nf6 {[%emt 0:00:11]} 2. c4 {[%emt 0:00:00]} e6 {[%emt 0:00:06]} 3. Nf3 {[%emt 0:00:00]} b6 {[%emt 0:00:52]} 4. g3 {[%emt 0:00:00]} Bb7 {[%emt 0:00:09]} 5. Bg2 {[%emt 0:00:00]} Bb4+ {[%emt 0:00:12]} 6. Bd2 {[%emt 0:00:06]} a5 {[%emt 0:00:14]} 7. O-O {[%emt 0:00:20]} Bxd2 {[%emt 0:01:01]} 8. Qxd2 {[%emt 0:00:17]} O-O {[%emt 0:00:39]} 9. Nc3 {[%emt 0:00:20]} Ne4 {[%emt 0:05:47]} 10. Nxe4 {[%emt 0:00:59]} Bxe4 {[%emt 0:00:05]} 11. Qf4 {[%emt 0:00:57]} f5 {[%emt 0:01:06]} 12. Rfd1 {[%emt 0:02:11]} Na6 {[%emt 0:10:59]} 13. d5 {[%emt 0:11:12]} exd5 {[%emt 0:09:19]} 14. cxd5 {[%emt 0:00:13]} Bxf3 {[%emt 0:00:09]} 15. Bxf3 {[%emt 0:01:38]} d6 {[%emt 0:00:30]} 16. a3 {[%emt 0:03:37]} Nc5 {[%emt 0:05:43]} 17. b4 {[%emt 0:03:11]} Nd7 {[%emt 0:02:55]} 18. Rac1 {[%emt 0:04:08]} Ne5 {[%emt 0:05:26]} 19. Rc3 {[%emt 0:03:42]} axb4 {[%emt 0:07:07]} 20. Qxb4 {[%emt 0:03:23]} Nd7 {[%emt 0:03:59]} 21. e4 {[%emt 0:06:27]} fxe4 {[%emt 0:05:04]} 22. Bxe4 {[%emt 0:08:19]} Nc5 {[%emt 0:00:26]} 23. Qb1 {[%emt 0:01:49]} h6 {[%emt 0:04:12]} 24. Bf5 {[%emt 0:04:04]} Kh8 {[%emt 0:02:55]} 25. g4 {[%emt 0:09:13]} Ra4 {[%emt 0:11:58]} 26. Qc1 {[%emt 0:12:52]} Qh4 {[%emt 0:06:46]} 27. Qc2 {[%emt 0:12:02]} Qg5 {[%emt 0:05:28]} 28. Re1 {[%emt 0:04:24]} Rf4 {[%emt 0:02:28]} 29. Rg3 {[%emt 0:02:20]} Rd4 {[%emt 0:03:23]} 30. Qe2 {[%emt 0:02:56]} Rxd5 {[%emt 0:03:35]} 31. Qe7 {[%emt 0:03:05]} Qxe7 {[%emt 0:00:41]} 32. Rxe7 {[%emt 0:00:04]} Na6 {[%emt 0:00:58]} 33. Bd3 {[%emt 0:01:04]} Nc5 {[%emt 0:01:11]} 34. Bf5 {[%emt 0:00:29]} Na6 {[%emt 0:00:22]} 35. Bd3 {[%emt 0:00:06]} Nc5 {[%emt 0:00:39]} 36. Bf5 {[%emt 0:00:06]} Na6 {[%emt 0:00:22]} 37. Bd3 {[%emt 0:00:12]} b5 {[%emt 0:00:34]} 38. Kg2 {[%emt 0:00:56]} c6 {[%emt 0:00:47]} 39. Rge3 {[%emt 0:01:13]} Re5 {[%emt 0:00:32]} 40. R3xe5 {[%emt 0:00:00]} dxe5 {[%emt 0:00:00]} 41. Rxe5 {[%emt 0:00:34]} Kg8 {[%emt 0:05:25]} 42. Bf5 {[%emt 0:07:11]} Kf7 {[%emt 0:07:22]} 43. h4 {[%emt 0:08:02]} g6 {[%emt 0:04:31]} 1/2-1/2

[Event "EYCC Girls-U14 2019"]
[Site "Bratislava"]
[Date "2019.08.03"]
[Round "2.8"]
[White "Mironenko, Galina"]
[Black "Anacoglu, Cisel"]
[Result "0-1"]
[ECO "D18"]
[WhiteElo "1995"]
[BlackElo "1869"]
[Annotator "NA"]
[PlyCount "114"]
[EventDate "2019.08.02"]
[EventType "swiss"]
[EventCountry "SVK"]
[SourceTitle "playchess.com"]
[Source "ChessBase"]
[SourceQuality "1"]
[TimeControl "40/5400+30:1800+30"]

1. d4 {[%emt 0:00:00]} d5 {[%emt 0:00:00]} 2. c4 {[%emt 0:00:00]} c6 {[%emt 0:00:00]} 3. Nf3 {[%emt 0:00:00]} Nf6 {[%emt 0:00:00]} 4. Nc3 {[%emt 0:00:00]} dxc4 {[%emt 0:00:00]} 5. a4 {[%emt 0:00:00]} Bf5 {[%emt 0:00:00]} 6. e3 {[%emt 0:00:04]} e6 {[%emt 0:00:08]} 7. Bxc4 {[%emt 0:00:10]} Bb4 {[%emt 0:00:14]} 8. O-O {[%emt 0:00:16]} Nbd7 {[%emt 0:00:10]} 9. Qe2 {[%emt 0:00:08]} O-O {[%emt 0:00:08]} 10. e4 {[%emt 0:00:08]} Bg6 {[%emt 0:07:37]} 11. Bd3 {[%emt 0:00:09]} a5 {[%emt 0:02:54]} 12. Bb1 {[%emt 0:02:37]} Re8 {[%emt 0:05:57]} 13. e5 {[%emt 0:04:07]} Nd5 {[%emt 0:00:14]} 14. Nxd5 {[%emt 0:08:14]} cxd5 {[%emt 0:00:25]} 15. Bxg6 {[%emt 0:01:43]} fxg6 {[%emt 0:01:30]} 16. Ne1 {[%emt 0:08:53]} Nb8 {[%emt 0:04:32]} 17. Nd3 {[%emt 0:04:17]} Qd7 {[%emt 0:02:03]} 18. Be3 {[%emt 0:03:15]} Nc6 {[%emt 0:01:40]} 19. h4 {[%emt 0:02:27]} Qf7 {[%emt 0:08:27]} 20. g3 {[%emt 0:05:13]} Qf5 {[%emt 0:09:51]} 21. f3 {[%emt 0:08:02]} Qf7 {[%emt 0:09:57]} 22. Nf4 {[%emt 0:04:26]} Ne7 {[%emt 0:01:36]} 23. g4 {[%emt 0:03:30]} Nc6 {[%emt 0:02:47]} 24. Qd3 {[%emt 0:02:26]} Rac8 {[%emt 0:02:27]} 25. h5 {[%emt 0:05:01]} Nxd4 {[%emt 0:13:31]} 26. hxg6 {[%emt 0:06:51]} hxg6 {[%emt 0:00:13]} 27. Kg2 {[%emt 0:15:14]} Nc2 {[%emt 0:04:02]} 28. Rac1 {[%emt 0:03:05]} Nxe3+ {[%emt 0:13:18]} 29. Qxe3 {[%emt 0:00:08]} d4 {[%emt 0:01:40]} 30. Qxd4 {[%emt 0:03:59]} Rxc1 {[%emt 0:00:07]} 31. Rxc1 {[%emt 0:00:38]} Rf8 {[%emt 0:00:06]} 32. Nh3 {[%emt 0:04:23]} Qxf3+ {[%emt 0:00:35]} 33. Kh2 {[%emt 0:00:04]} Qe2+ {[%emt 0:00:37]} 34. Kh1 {[%emt 0:01:19]} Be1 {[%emt 0:03:07]} 35. Ng1 {[%emt 0:03:13]} Rf1 {[%emt 0:00:22]} 36. Qf4 {[%emt 0:01:50]} g5 {[%emt 0:05:00]} 37. Rc8+ {[%emt 0:01:38]} Kh7 {[%emt 0:00:01]} 38. Qh2+ {[%emt 0:00:44]} Qxh2+ {[%emt 0:00:01]} 39. Kxh2 {[%emt 0:00:07]} Rf2+ {[%emt 0:00:05]} 40. Kh3 {[%emt 0:00:00]} Rxb2 {[%emt 0:00:00]} 41. Nf3 {[%emt 0:04:13]} Bd2 {[%emt 0:01:44]} 42. Re8 {[%emt 0:07:05]} Bf4 {[%emt 0:00:16]} 43. Rf8 {[%emt 0:00:50]} Rf2 {[%emt 0:03:22]} 44. Nxg5+ {[%emt 0:01:04]} Kg6 {[%emt 0:00:02]} 45. Rxf4 {[%emt 0:00:09]} Rxf4 {[%emt 0:00:03]} 46. Nxe6 {[%emt 0:00:04]} Rxa4 {[%emt 0:00:04]} 47. Nc5 {[%emt 0:01:19]} b5 {[%emt 0:00:12]} 48. Nd7 {[%emt 0:00:44]} Kf7 {[%emt 0:00:47]} 49. Nc5 {[%emt 0:01:16]} Ra3+ {[%emt 0:00:05]} 50. Kh4 {[%emt 0:00:03]} b4 {[%emt 0:00:03]} 51. Kg5 {[%emt 0:00:07]} b3 {[%emt 0:00:04]} 52. e6+ {[%emt 0:00:45]} Ke7 {[%emt 0:00:04]} 53. Kg6 {[%emt 0:00:09]} b2 {[%emt 0:00:04]} 54. Kxg7 {[%emt 0:00:02]} b1=Q {[%emt 0:00:05]} 55. g5 {[%emt 0:00:04]} Rg3 {[%emt 0:00:12]} 56. Ne4 {[%emt 0:00:24]} Qxe4 {[%emt 0:00:06]} 57. Kh8 {[%emt 0:00:01]} Rh3+ {[%emt 0:00:07]} 0-1